bitfinex-derivatives/quotes_ETHF0:USTF0_20230101
["timestamp","ask_amount","ask_price","bid_price","bid_amount"]
[1672535375294,2.50445935,1195.1,1195.0,12.361]
[1672535375505,5.63503808,1195.2,1195.0,12.361]
[1672535375720,2.50445935,1195.2,1195.0,12.361]
[1672535376561,2.49654361,1195.4,1195.2,8.361]
[1672535376779,5.62712234,1195.5,1195.2,9.61165446]
[1672535377089,2.49654361,1195.4,1195.2,8.361]
[1672535377294,2.49654361,1195.4,1195.3,12.361]
[1672535377508,5.62712234,1195.5,1195.4,3.5]
[1672535377709,2.49654361,1195.5,1195.4,3.5]
[1672535378763,5.62712234,1195.5,1195.4,3.5]
[1672535378968,4.66801658,1195.5,1195.4,11.861]
[1672535379187,2.49383785,1195.6,1195.4,11.861]
[1672535379394,6.49383785,1195.5,1195.4,11.861]
[1672535379600,4.0,1195.5,1195.4,11.861]
[1672535380865,6.49383785,1195.5,1195.3,8.41209575]
[1672535381076,6.49383785,1195.5,1195.3,0.05109575]
[1672535382029,6.49383785,1195.5,1195.3,8.41209575]
[1672535382654,4.0,1195.5,1195.4,3.5]
[1672535384448,2.49383785,1195.6,1195.4,11.861]
[1672535384754,6.49383785,1195.7,1195.4,11.861]
[1672535385591,4.0,1195.7,1195.4,11.861]
[1672535386226,6.49383785,1195.7,1195.4,11.861]
[1672535386559,4.0,1195.7,1195.4,11.861]
[1672535387288,2.49383785,1195.8,1195.4,11.861]
[1672535387497,5.99383785,1195.9,1195.4,11.861]
[1672535388972,3.5,1195.9,1195.4,11.861]
[1672535389392,5.99383785,1195.9,1195.4,11.861]
[1672535389600,3.5,1195.9,1195.4,11.861]
[1672535390552,5.99383785,1195.9,1195.4,11.861]
[1672535391275,3.5,1195.9,1195.4,11.861]
[1672535398637,5.99383785,1195.9,1195.4,11.861]
[1672535401899,3.5,1195.9,1195.4,11.861]
[1672535403995,3.5,1195.9,1195.4,13.11165446]
[1672535404415,3.5,1195.9,1195.4,11.861]
[1672535404946,3.5,1195.9,1195.4,13.11165446]
[1672535407247,3.5,1195.9,1195.5,1.25065446]
[1672535407888,3.5,1195.9,1195.6,12.361]
[1672535408412,3.5,1195.9,1195.7,3.5]
[1672535409775,5.99383785,1195.9,1195.7,3.5]
[1672535410725,3.5,1195.9,1195.7,3.5]
[1672535411038,5.99383785,1195.9,1195.7,3.5]
[1672535411248,9.10189133,1195.9,1195.7,3.5]
[1672535411665,2.49383785,1195.8,1195.7,3.5]
[1672535415562,5.60189133,1195.8,1195.7,3.5]
[1672535416290,3.10805348,1195.8,1195.7,3.5]
[1672535418605,5.60880055,1195.8,1195.7,3.5]
[1672535418810,2.50074707,1195.8,1195.7,24.04405079]
[1672535419021,2.50074707,1195.8,1195.7,22.79339633]
[1672535419022,5.60880055,1195.8,1195.7,22.79339633]
[1672535419750,3.10805348,1195.8,1195.7,22.79339633]
[1672535420171,3.10805348,1195.8,1195.7,11.861]
[1672535420603,3.10805348,1195.8,1195.7,14.23279304]
[1672535420907,3.10805348,1195.8,1195.7,11.861]
[1672535421122,3.10805348,1195.8,1195.7,22.86506933]
[1672535422280,3.10805348,1195.8,1195.7,24.11572379]
[1672535423644,11.64518548,1195.9,1195.7,24.11572379]
[1672535423853,7.26379652,1195.9,1195.7,24.11572379]
[1672535425644,11.64518548,1195.9,1195.7,24.11572379]
[1672535427536,3.76379652,1195.8,1195.7,24.11572379]
[1672535428167,7.26379652,1195.9,1195.7,25.99373772]
[1672535428696,7.26379652,1195.9,1195.7,24.11572379]
[1672535428896,7.26379652,1195.9,1195.7,25.99373772]
[1672535429533,7.26379652,1195.9,1195.7,24.11572379]
[1672535429846,11.64518548,1195.9,1195.7,24.11572379]
[1672535430056,7.26379652,1195.9,1195.7,25.99373772]
[1672535432998,7.26379652,1195.9,1195.7,24.11572379]
[1672535433732,3.1318859,1195.8,1195.7,25.99373772]
[1672535433944,7.26379652,1195.9,1195.7,25.99373772]
[1672535434573,7.26379652,1195.9,1195.7,24.11572379]
[1672535436578,7.26379652,1195.9,1195.7,25.99373772]
[1672535437728,3.76379652,1195.9,1195.7,25.99373772]
[1672535440785,3.13258789,1195.8,1195.7,24.74308326]
[1672535441629,3.13258789,1195.8,1195.7,25.99700084]
[1672535442039,3.76379652,1195.9,1195.7,25.99700084]
[1672535444568,3.76379652,1195.9,1195.7,25.99398201]
[1672535447196,3.76379652,1195.9,1195.7,24.11596808]
[1672535447402,8.14518548,1195.9,1195.7,24.11596808]
[1672535449291,3.5,1195.8,1195.7,22.8620505]
[1672535449502,7.26379652,1195.8,1195.7,22.8620505]
[1672535450450,3.76379652,1195.8,1195.7,22.8620505]
[1672535451190,3.76379652,1195.8,1195.7,3.49698117]
[1672535451498,3.76379652,1195.8,1195.7,22.71584116]
[1672535451709,3.76379652,1195.8,1195.7,13.11189875]
[1672535452027,3.76379652,1195.8,1195.7,22.85940229]
[1672535452548,3.76379652,1195.8,1195.7,15.75231987]
[1672535452760,7.26379652,1195.8,1195.7,3.49698117]
[1672535452969,11.64518548,1195.8,1195.7,3.49698117]
[1672535453601,7.26379652,1195.8,1195.7,3.49698117]
[1672535453809,11.64518548,1195.8,1195.7,3.49698117]
[1672535454343,7.26379652,1195.8,1195.7,3.49698117]
[1672535456755,7.26379652,1195.8,1195.7,4.75089875]
[1672535457177,3.5,1195.8,1195.7,4.75089875]
[1672535457381,3.5,1195.8,1195.7,6.62891268]
[1672535458026,3.5,1195.8,1195.7,4.75089875]
[1672535467381,3.5,1195.8,1195.7,6.62891268]
[1672535467697,3.5,1195.8,1195.7,4.75089875]
[1672535468954,3.5,1195.8,1195.7,6.62891268]
[1672535469178,3.5,1195.8,1195.7,4.75089875]
[1672535472542,3.5,1195.8,1195.7,6.62891268]
[1672535472744,3.5,1195.8,1195.7,4.75089875]
[1672535473067,3.5,1195.8,1195.7,6.62891268]
[1672535473803,3.5,1195.8,1195.7,4.75089875]
[1672535474224,3.5,1195.8,1195.7,6.62891268]
[1672535474959,8.14518548,1195.9,1195.7,6.62891268]
[1672535475274,3.5,1195.8,1195.7,6.62891268]
[1672535475799,6.63202865,1195.8,1195.7,6.62891268]
[1672535476008,3.5,1195.8,1195.7,6.62891268]
[1672535477900,3.76379652,1195.9,1195.7,25.81929729]
[1672535478110,3.13209756,1195.8,1195.7,25.81929729]
[1672535478941,3.76379652,1195.9,1195.7,25.81929729]
[1672535479902,3.13180579,1195.8,1195.7,25.81929729]
[1672535481167,3.76379652,1195.9,1195.7,25.81929729]
[1672535482427,3.5,1195.8,1195.7,25.81929729]
[1672535483691,3.76379652,1195.9,1195.7,25.81929729]
[1672535485900,3.13219938,1195.8,1195.7,25.81929729]
[1672535486421,3.76379652,1195.9,1195.7,25.81929729]
[1672535486736,3.13214521,1195.8,1195.7,25.81929729]
[1672535486944,3.76379652,1195.9,1195.7,25.81929729]
[1672535487148,3.13211616,1195.8,1195.7,25.81929729]
[1672535487360,3.76379652,1195.9,1195.7,25.81929729]
[1672535488094,3.5,1195.8,1195.7,25.81929729]
[1672535488732,3.76379652,1195.9,1195.7,25.81929729]
[1672535490416,3.76379652,1195.9,1195.7,24.56537971]
[1672535490417,3.13210647,1195.8,1195.7,24.56537971]
[1672535490629,3.76379652,1195.9,1195.7,25.81933635]
[1672535492201,3.76379652,1195.9,1195.8,1.25395664]
[1672535494305,3.76379652,1195.9,1195.7,25.81933635]
[1672535494516,3.5,1195.8,1195.7,15.58032242]
[1672535494720,7.26379652,1195.8,1195.7,4.75093781]
[1672535495357,7.26379652,1195.8,1195.7,24.22972802]
[1672535495566,7.26379652,1195.8,1195.7,15.86872802]
[1672535495877,7.26379652,1195.8,1195.7,24.22972802]
[1672535498083,7.26379652,1195.8,1195.7,4.75093781]
[1672535498295,7.26379652,1195.8,1195.7,13.11193781]
[1672535498612,7.26379652,1195.8,1195.7,24.09264178]
[1672535498822,7.26379652,1195.8,1195.7,4.75093781]
[1672535500083,7.26379652,1195.8,1195.7,6.62895174]
[1672535500600,7.26379652,1195.8,1195.7,4.75093781]
[1672535501553,7.26055637,1195.8,1195.7,4.75093781]
[1672535503333,7.26055637,1195.8,1195.6,15.49297057]
[1672535503543,11.64194533,1195.8,1195.6,15.49297057]
[1672535504177,7.26055637,1195.8,1195.7,3.5]
[1672535505125,7.26055637,1195.8,1195.6,7.13197057]
[1672535505761,11.64194533,1195.8,1195.6,7.13197057]
[1672535505971,7.26055637,1195.8,1195.6,7.13197057]
[1672535506283,7.26055637,1195.8,1195.7,3.0]
[1672535507332,7.26055637,1195.8,1195.7,4.25395664]
[1672535508065,7.26055637,1195.8,1195.7,3.0]
[1672535508279,7.26055637,1195.8,1195.6,7.13197057]
[1672535508492,11.64194533,1195.8,1195.6,5.25395664]
[1672535509434,7.26055637,1195.8,1195.6,7.13197057]
[1672535509747,7.26055637,1195.8,1195.6,5.25395664]
[1672535517320,3.13073458,1195.7,1195.6,5.25395664]
[1672535517636,3.13071754,1195.7,1195.6,5.25395664]
[1672535517948,3.13069187,1195.7,1195.6,5.25395664]
[1672535518264,7.26055637,1195.8,1195.6,5.25395664]
[1672535518789,3.13072705,1195.7,1195.6,5.25395664]
[1672535518999,3.13072705,1195.7,1195.6,7.13197057]
[1672535519622,7.26055637,1195.8,1195.6,5.25395664]
[1672535523096,3.13080064,1195.7,1195.6,7.13197057]
[1672535523521,3.13080064,1195.7,1195.6,5.25395664]
[1672535523837,3.13080064,1195.7,1195.6,7.13197057]
[1672535524040,7.26055637,1195.8,1195.6,5.25395664]
[1672535528142,11.64194533,1195.8,1195.6,5.25395664]
[1672535528457,7.26055637,1195.8,1195.6,5.25395664]
[1672535530038,11.64194533,1195.8,1195.6,5.25395664]
[1672535531614,7.26055637,1195.8,1195.6,5.25395664]
[1672535532026,11.64194533,1195.8,1195.6,7.13197057]
[1672535532243,7.26055637,1195.8,1195.6,7.13197057]
[1672535534026,11.64194533,1195.8,1195.6,7.13197057]
[1672535535607,7.26055637,1195.8,1195.6,7.13197057]
[1672535536027,7.26055637,1195.8,1195.7,1.25395664]
[1672535536550,7.26055637,1195.8,1195.6,7.13197057]
[1672535536762,11.64194533,1195.8,1195.6,7.13197057]
[1672535541807,11.64194533,1195.8,1195.7,1.25395664]
[1672535542125,7.87814881,1195.8,1195.6,7.13197057]
[1672535542324,3.76063249,1195.7,1195.6,7.13197057]
[1672535545700,3.76063249,1195.7,1195.6,5.87801393]
[1672535545911,3.76063249,1195.7,1195.6,7.13288125]
[1672535546121,3.76063249,1195.7,1195.6,7.13289521]
[1672535546323,3.76063249,1195.7,1195.6,7.13289529]
[1672535546533,11.6387813,1195.8,1195.6,5.87801393]
[1672535546743,11.6387813,1195.8,1195.7,1.25488074]
[1672535546955,7.87814881,1195.8,1195.7,1.25488074]
[1672535547381,11.63903686,1195.8,1195.7,1.25488074]
[1672535548012,11.63903686,1195.8,1195.6,7.13289467]
[1672535548222,3.7610304,1195.7,1195.6,7.13289467]
[1672535552118,3.7610304,1195.7,1195.6,5.25488074]
[1672535553577,3.7610304,1195.7,1195.6,1.25488074]
[1672535553788,4.38138896,1195.7,1195.5,1.25488074]
[1672535554004,8.14009965,1195.6,1195.4,3.13289467]
[1672535554219,8.14009965,1195.6,1195.3,16.15838101]
[1672535554220,8.14009965,1195.6,1195.3,16.78489467]
[1672535554424,3.12922583,1195.4,1195.3,3.13289467]
[1672535554632,7.12922583,1195.4,1195.3,3.13289467]
[1672535554842,7.12922583,1195.4,1195.3,7.13289467]
[1672535556104,7.12922583,1195.4,1195.3,5.25488074]
[1672535558106,9.62958422,1195.4,1195.3,5.25488074]
[1672535558521,9.62958422,1195.4,1195.3,7.13289467]
[1672535558522,2.50035839,1195.4,1195.3,7.13289467]
[1672535559369,2.50035839,1195.4,1195.3,5.87801393]
[1672535559892,9.62958422,1195.5,1195.3,5.87801393]
[1672535560211,9.62956821,1195.5,1195.4,1.25231451]
[1672535565261,5.62956821,1195.5,1195.4,1.25231451]
[1672535565570,5.6293913,1195.5,1195.4,1.25231451]
[1672535566941,3.12922583,1195.5,1195.3,7.13032844]
[1672535567149,2.49982095,1195.4,1195.3,7.13032844]
[1672535567358,5.62904678,1195.5,1195.3,7.13032844]
[1672535568094,2.49982095,1195.4,1195.3,5.25231451]
[1672535569041,2.49982095,1195.4,1195.3,13.61331451]
[1672535569245,2.49982095,1195.4,1195.3,15.49132844]
[1672535569881,2.4946451,1195.4,1195.3,15.49132844]
[1672535570826,3.12922583,1195.5,1195.3,15.49132844]
[1672535583130,3.12922583,1195.5,1195.4,1.25231451]
[1672535584912,3.12922583,1195.5,1195.4,3.13032844]
[1672535585117,7.12922583,1195.6,1195.4,3.13032844]
[1672535585436,7.12922583,1195.6,1195.5,3.5]
[1672535586275,7.12721695,1195.6,1195.5,4.75231451]
[1672535586489,4.0,1195.6,1195.5,3.5]
[1672535588168,4.0,1195.6,1195.5,4.75231451]
[1672535592058,7.75871069,1195.6,1195.5,4.75231451]
[1672535593008,4.0,1195.6,1195.5,4.75231451]
[1672535595002,3.75871069,1195.7,1195.5,6.63032844]
[1672535595212,7.75871069,1195.7,1195.5,4.75231451]
[1672535596157,7.75871069,1195.7,1195.5,6.63032844]
[1672535596581,12.14009965,1195.7,1195.5,4.75231451]
[1672535596895,3.5,1195.6,1195.5,4.75231451]
[1672535598366,7.25871069,1195.6,1195.5,4.75231451]
[1672535598999,3.75871069,1195.6,1195.5,4.75231451]
[1672535599630,12.14009965,1195.7,1195.5,4.75231451]
[1672535600577,3.5,1195.6,1195.5,4.75231451]
[1672535600992,7.25871069,1195.6,1195.5,4.75231451]
[1672535601305,3.5,1195.6,1195.5,4.75231451]
[1672535601619,3.5,1195.6,1195.5,6.63032844]
[1672535602783,3.5,1195.6,1195.5,4.75231451]
[1672535603309,7.25871069,1195.6,1195.5,4.75231451]
[1672535603517,7.25871069,1195.6,1195.5,3.5]
[1672535604357,7.25871069,1195.6,1195.5,4.75231451]
[1672535610983,8.14009965,1195.7,1195.5,4.75231451]
[1672535611292,3.13076389,1195.6,1195.5,7.88439494]
[1672535611499,3.13076389,1195.6,1195.5,5.37801393]
[1672535612868,3.13076389,1195.6,1195.5,7.88439494]
[1672535613707,3.13076389,1195.6,1195.5,5.37801393]
[1672535616027,3.13076389,1195.6,1195.5,6.63186868]
[1672535616651,7.75871069,1195.7,1195.5,4.75385475]
[1672535616864,7.75871069,1195.7,1195.5,6.63186868]
[1672535619700,7.75871069,1195.7,1195.5,4.75385475]
[1672535621599,7.75871069,1195.7,1195.5,6.63186868]
[1672535622431,3.13008918,1195.6,1195.5,6.63186868]
[1672535622641,7.75871069,1195.7,1195.5,6.63186868]
[1672535623282,3.13009087,1195.6,1195.5,6.63186868]
[1672535623489,7.75871069,1195.7,1195.5,6.63186868]
[1672535624950,3.13018056,1195.6,1195.5,14.99286868]
[1672535625170,3.13018056,1195.6,1195.5,13.73901393]
[1672535626117,3.13018056,1195.6,1195.5,16.24539494]
[1672535627695,3.13018056,1195.6,1195.5,13.73901393]
[1672535628848,3.13018056,1195.6,1195.5,16.24539494]
[1672535629061,3.13018056,1195.6,1195.5,13.73901393]
[1672535636315,3.12641194,1195.6,1195.5,13.73901393]
[1672535641357,5.63005046,1195.6,1195.5,16.24539494]
[1672535641567,3.12641194,1195.6,1195.5,16.24539494]
[1672535641781,5.63005188,1195.6,1195.5,16.24539494]
[1672535644511,3.12641194,1195.6,1195.5,16.24539494]
[1672535647027,5.63029285,1195.6,1195.5,15.85025244]
[1672535647242,3.12641194,1195.6,1195.5,16.24835177]
[1672535648399,3.12641194,1195.6,1195.5,16.24856507]
[1672535648716,3.12641194,1195.6,1195.5,14.36738101]
[1672535649027,3.12641194,1195.6,1195.5,16.24856547]
[1672535649983,5.63059708,1195.6,1195.5,15.85025291]
[1672535650299,3.12641194,1195.6,1195.5,15.85025291]
[1672535651665,5.63105045,1195.6,1195.5,15.85025291]
[1672535653137,2.50463851,1195.6,1195.5,18.98656194]
[1672535653657,2.50463851,1195.6,1195.5,15.85025291]
[1672535656491,5.63635197,1195.6,1195.5,15.85025291]
[1672535656807,2.50463851,1195.6,1195.5,15.85025291]
[1672535658496,5.63635197,1195.6,1195.5,15.85025291]
[1672535660069,2.50463851,1195.6,1195.5,15.85025291]
[1672535660278,5.63635197,1195.6,1195.5,15.85025291]
[1672535660606,3.13171346,1195.6,1195.5,15.85025291]
[1672535660920,5.63725188,1195.6,1195.5,15.85025291]
[1672535661547,2.50553842,1195.6,1195.5,15.85025291]
[1672535661757,3.13171346,1195.6,1195.5,15.85025291]
[1672535661967,3.13171346,1195.6,1195.5,14.36738101]
[1672535662286,3.13171346,1195.6,1195.5,15.85027226]
[1672535663224,5.63753936,1195.6,1195.5,15.85027226]
[1672535663547,3.13171346,1195.6,1195.5,15.85027226]
[1672535664284,5.63756345,1195.6,1195.5,15.85027226]
[1672535664493,3.13171346,1195.6,1195.5,15.85027226]
[1672535666597,5.63781853,1195.6,1195.5,15.85027226]
[1672535668073,3.13171346,1195.6,1195.5,15.85027226]
[1672535669749,5.63778662,1195.6,1195.5,18.98658129]
[1672535670168,5.63778662,1195.6,1195.5,15.85027226]
[1672535670380,3.13171346,1195.6,1195.5,15.85027226]
[1672535670593,3.13171346,1195.6,1195.5,14.36738101]
[1672535670799,3.13171346,1195.6,1195.5,16.24916053]
[1672535671005,3.13171346,1195.6,1195.5,15.85027977]
[1672535671643,4.0,1195.7,1195.5,1.88189386]
[1672535671854,4.0,1195.7,1195.5,7.13651063]
[1672535672073,4.0,1195.7,1195.5,1.25461677]
[1672535672074,12.14009965,1195.7,1195.5,1.25461677]
[1672535672279,3.75871069,1195.6,1195.5,5.25461677]
[1672535672480,3.75871069,1195.6,1195.5,1.25461677]
[1672535673846,3.75871069,1195.6,1195.5,5.25461677]
[1672535674056,3.75871069,1195.6,1195.5,1.25461677]
[1672535674271,3.75871069,1195.6,1195.5,5.25461677]
[1672535675330,3.75871069,1195.6,1195.5,4.0]
[1672535675636,3.5,1195.5,1195.4,14.11922208]
[1672535675845,6.6298334,1195.5,1195.4,3.13651063]
[1672535676045,6.62983297,1195.5,1195.4,6.63651063]
[1672535676256,6.62983297,1195.5,1195.4,4.75461677]
[1672535676898,3.5,1195.5,1195.4,4.75461677]
[1672535677109,6.62979726,1195.5,1195.4,6.63651063]
[1672535677636,6.62979726,1195.5,1195.4,5.38189386]
[1672535678361,6.62979726,1195.5,1195.4,6.63541751]
[1672535680362,9.13284721,1195.5,1195.4,5.38189386]
[1672535680570,6.62979726,1195.5,1195.4,6.63518111]
[1672535681202,6.62979726,1195.5,1195.4,4.75328725]
[1672535683308,6.62979726,1195.5,1195.4,3.5]
[1672535684147,6.62979726,1195.5,1195.4,4.75328725]
[1672535684670,6.62979726,1195.5,1195.4,3.5]
[1672535684884,6.62979726,1195.5,1195.4,4.75328725]
[1672535686145,9.13118161,1195.5,1195.4,4.75328725]
[1672535686356,6.62979726,1195.5,1195.4,4.75328725]
[1672535686989,9.13119472,1195.5,1195.4,4.75328725]
[1672535688667,6.00139746,1195.5,1195.4,4.75328725]
[1672535690243,9.13119472,1195.5,1195.4,4.75328725]
[1672535694025,6.00139746,1195.5,1195.4,6.63518111]
[1672535694338,9.13119472,1195.5,1195.4,4.75328725]
[1672535695172,6.00139746,1195.5,1195.4,4.75328725]
[1672535695390,6.00139746,1195.5,1195.4,6.63518111]
[1672535696545,9.13119472,1195.5,1195.4,6.63518111]
[1672535696755,9.13119472,1195.5,1195.4,4.75328725]
[1672535698128,6.62979726,1195.5,1195.4,4.75328725]
[1672535705396,6.62979726,1195.5,1195.4,6.63518111]
[1672535705704,6.62979726,1195.5,1195.4,6.62724474]
[1672535706543,6.62979726,1195.5,1195.4,4.74535088]
[1672535706754,6.62979726,1195.5,1195.4,6.62724474]
[1672535709271,6.62979726,1195.5,1195.4,4.74535088]
[1672535709481,3.5,1195.5,1195.4,6.62724474]
[1672535710224,3.5,1195.5,1195.4,4.74535088]
[1672535711381,3.5,1195.5,1195.4,6.62724474]
[1672535712429,3.5,1195.5,1195.4,5.37395749]
[1672535712743,3.5,1195.5,1195.4,6.62878135]
[1672535713271,7.25871069,1195.5,1195.4,6.62878135]
[1672535713795,3.5,1195.5,1195.4,6.62878135]
[1672535714842,3.5,1195.5,1195.4,5.37395749]
[1672535715259,3.5,1195.5,1195.4,6.62873054]
[1672535716001,3.5,1195.5,1195.4,6.62871417]
[1672535718841,3.5,1195.5,1195.4,5.37395749]
[1672535719152,3.5,1195.5,1195.4,6.62875711]
[1672535719879,3.5,1195.5,1195.4,5.37395749]
[1672535721045,3.75871069,1195.6,1195.4,5.37395749]
[1672535721256,3.75871069,1195.6,1195.5,1.25479051]
[1672535721460,3.75871069,1195.6,1195.5,3.13668437]
[1672535721675,3.75871069,1195.6,1195.5,1.25479051]
[1672535723149,3.75871069,1195.6,1195.5,3.13668437]
[1672535724509,3.75871069,1195.6,1195.5,1.25479051]
[1672535724722,3.75871069,1195.6,1195.5,3.13668437]
[1672535725564,3.75871069,1195.6,1195.5,1.25479051]
[1672535725775,3.75871069,1195.6,1195.5,3.13668437]
[1672535727038,3.75871069,1195.6,1195.5,1.25479051]
[1672535727667,3.75871069,1195.6,1195.5,3.13668437]
[1672535727975,12.14009965,1195.7,1195.5,3.13668437]
[1672535728192,3.75871069,1195.6,1195.5,3.13668437]
[1672535728507,12.14009965,1195.7,1195.5,3.13668437]
[1672535733122,12.14009965,1195.7,1195.5,1.25479051]
[1672535733335,12.14009965,1195.7,1195.5,3.13668437]
[1672535734072,7.75871069,1195.7,1195.5,3.13668437]
[1672535734813,12.14009965,1195.7,1195.5,3.13668437]
[1672535735226,7.75871069,1195.7,1195.5,3.13668437]
[1672535739123,12.14009965,1195.7,1195.5,3.13668437]
[1672535739545,3.75871069,1195.7,1195.4,17.60838386]
[1672535739750,5.63791565,1195.6,1195.5,3.98924601]
[1672535739967,5.63791565,1195.6,1195.5,7.12555504]
[1672535739968,2.50576155,1195.6,1195.5,7.12555504]
[1672535740284,5.63791565,1195.6,1195.5,3.98924601]
[1672535740593,2.50576155,1195.6,1195.5,2.50638101]
[1672535741215,3.1321541,1195.6,1195.5,1.88039974]
[1672535744062,5.6367639,1195.6,1195.5,4.38678075]
[1672535744276,5.6367639,1195.6,1195.5,1.88039974]
[1672535746794,3.1321541,1195.6,1195.5,3.13362136]
[1672535747210,5.63615908,1195.6,1195.5,3.13362136]
[1672535747426,5.63615908,1195.6,1195.5,1.88039974]
[1672535747636,3.1321541,1195.6,1195.5,3.13363329]
[1672535748163,5.63606766,1195.6,1195.5,1.88039974]
[1672535748476,5.63606766,1195.6,1195.5,3.13357766]
[1672535748686,5.63606766,1195.6,1195.5,1.88039974]
[1672535748893,3.1321541,1195.6,1195.5,3.1335786]
[1672535750365,3.1321541,1195.6,1195.5,1.25317886]
[1672535752156,3.1321541,1195.6,1195.5,3.1335786]
[1672535753104,3.1321541,1195.6,1195.5,1.25317886]
[1672535753836,3.1321541,1195.6,1195.5,3.1335786]
[1672535760561,7.75871069,1195.7,1195.5,3.1335786]
[1672535760775,7.75871069,1195.7,1195.6,4.0]
[1672535767186,7.75871069,1195.7,1195.6,5.25317886]
[1672535769392,4.0,1195.7,1195.6,5.25317886]
[1672535769607,7.75871069,1195.7,1195.6,5.25317886]
[1672535771487,7.75871069,1195.7,1195.6,5.25080211]
[1672535773488,7.75113775,1195.7,1195.6,5.25080211]
[1672535797873,8.37381602,1195.7,1195.5,3.1335786]
[1672535798083,3.76089216,1195.6,1195.5,3.1335786]
[1672535798290,3.76089216,1195.6,1195.5,1.25317886]
[1672535798707,3.76089216,1195.6,1195.5,3.1335786]
[1672535799979,3.76089216,1195.6,1195.5,1.25317886]
[1672535800609,8.14228112,1195.6,1195.4,6.62564223]
[1672535800829,13.14858023,1195.6,1195.3,3.1335786]
[1672535801031,11.64228112,1195.5,1195.3,3.1335786]
[1672535801245,7.26089216,1195.5,1195.3,1.25317886]
[1672535801448,7.26089216,1195.5,1195.3,5.25317886]
[1672535801657,3.13053469,1195.4,1195.3,7.1335786]
[1672535801879,7.26089216,1195.5,1195.3,5.25317886]
[1672535802604,3.13033513,1195.4,1195.3,5.25317886]
[1672535811124,3.13033513,1195.4,1195.3,4.0]
[1672535811331,3.13033513,1195.4,1195.3,5.25317886]
[1672535811863,3.13033513,1195.4,1195.3,4.0]
[1672535812070,3.13033513,1195.4,1195.3,5.25317886]
[1672535813118,5.63119327,1195.4,1195.3,4.0]
[1672535813324,2.50085814,1195.4,1195.3,5.25317886]
[1672535814171,2.50085814,1195.4,1195.3,4.0]
[1672535814382,5.63119327,1195.4,1195.3,5.25317886]
[1672535814587,5.63121634,1195.4,1195.3,4.0]
[1672535814795,5.63121634,1195.4,1195.3,5.25317886]
[1672535815317,5.63121634,1195.4,1195.3,4.0]
[1672535816271,2.50088121,1195.4,1195.3,5.25317886]
[1672535818475,5.63121634,1195.4,1195.3,4.0]
[1672535818689,3.13033513,1195.4,1195.3,4.0]
[1672535820051,5.63087233,1195.4,1195.3,4.0]
[1672535820785,5.63087644,1195.4,1195.3,4.0]
[1672535823211,3.13033513,1195.4,1195.3,4.0]
[1672535831829,3.13033513,1195.4,1195.3,5.25317886]
[1672535832037,7.26089216,1195.5,1195.3,4.0]
[1672535833507,11.64228112,1195.5,1195.3,4.0]
[1672535834666,7.26089216,1195.5,1195.3,4.0]
[1672535835289,11.64228112,1195.5,1195.3,4.0]
[1672535836343,3.76089216,1195.4,1195.3,4.0]
[1672535844017,3.76089216,1195.4,1195.3,5.25317886]
[1672535844334,11.64228112,1195.5,1195.3,5.25317886]
[1672535844979,5.64293094,1195.4,1195.3,6.50638101]
[1672535845182,3.13486403,1195.4,1195.3,9.87078808]
[1672535845495,2.50804622,1195.4,1195.3,7.98950444]
[1672535845707,5.64291025,1195.4,1195.3,7.98950444]
[1672535845917,5.64241661,1195.4,1195.3,8.38732473]
[1672535846118,5.64241661,1195.4,1195.3,6.50638101]
[1672535847275,2.50755258,1195.4,1195.3,7.98947147]
[1672535847810,2.50755258,1195.4,1195.3,8.38695514]
[1672535848017,5.64241661,1195.4,1195.3,8.38695514]
[1672535848958,5.63610634,1195.4,1195.3,8.38695514]
[1672535849169,3.13486403,1195.4,1195.3,5.88057413]
[1672535855275,6.63486403,1195.5,1195.3,5.88057413]
[1672535855478,6.63486403,1195.5,1195.4,1.25344284]
[1672535858425,3.5,1195.5,1195.4,1.25344284]
[1672535860109,3.5,1195.5,1195.3,7.13401697]
[1672535860323,3.13208437,1195.4,1195.3,7.13401697]
[1672535862316,3.13208437,1195.4,1195.3,5.88057413]
[1672535864103,3.13208437,1195.4,1195.3,7.13385261]
[1672535864841,3.13208437,1195.4,1195.3,5.88057413]
[1672535865477,3.13208437,1195.4,1195.3,7.13386179]
[1672535879664,3.13208437,1195.4,1195.3,5.88057413]
[1672535879873,2.50713827,1195.4,1195.3,7.98949267]
[1672535880185,5.63922264,1195.4,1195.3,7.98949267]
[1672535880398,2.50713827,1195.4,1195.3,7.98949267]
[1672535880601,5.63922264,1195.4,1195.3,7.98949267]
[1672535881236,5.63922264,1195.4,1195.3,6.50638101]
[1672535881446,5.63922264,1195.4,1195.3,8.38735735]
[1672535881765,3.13208437,1195.4,1195.3,6.50638101]
[1672535883765,3.13208437,1195.4,1195.3,7.98951565]
[1672535884606,2.50923973,1195.4,1195.3,8.61944367]
[1672535885021,5.6413241,1195.4,1195.3,11.1289606]
[1672535885231,5.6413241,1195.4,1195.3,8.61944367]
[1672535885760,2.50923973,1195.4,1195.3,8.61944367]
[1672535886173,5.6413241,1195.4,1195.3,11.12863712]
[1672535886384,5.6413241,1195.4,1195.3,7.99232809]
[1672535886919,2.50923973,1195.4,1195.3,8.61944367]
[1672535888069,2.50923973,1195.4,1195.3,11.12835504]
[1672535890064,3.13208437,1195.4,1195.3,8.39070215]
[1672535890390,3.13208437,1195.4,1195.3,5.88179078]
[1672535890815,7.26089216,1195.5,1195.3,5.88179078]
[1672535891016,7.26089216,1195.5,1195.4,1.25456822]
[1672535891339,7.26089216,1195.5,1195.3,7.136359]
[1672535892182,7.26089216,1195.5,1195.4,1.25456822]
[1672535899751,7.26089216,1195.5,1195.3,7.136359]
[1672535900065,7.26089216,1195.5,1195.4,1.25445199]
[1672535909529,7.26089216,1195.5,1195.3,7.13624277]
[1672535910789,11.64228112,1195.5,1195.3,7.13624277]
[1672535911000,11.64228112,1195.5,1195.3,5.25445199]
[1672535911212,7.26089216,1195.5,1195.3,7.13624277]
[1672535915730,7.26089216,1195.5,1195.3,5.25445199]
[1672535918782,7.26089216,1195.5,1195.3,7.13624277]
[1672535920358,7.26089216,1195.5,1195.3,5.25445199]
[1672535921098,7.26089216,1195.5,1195.3,7.13624277]
[1672535921407,7.26089216,1195.5,1195.3,5.25445199]
[1672535921619,7.26089216,1195.5,1195.3,7.13624277]
[1672535923934,3.13472729,1195.4,1195.3,7.13624277]
[1672535924245,3.13472729,1195.4,1195.3,5.88179078]
[1672535924450,3.13472729,1195.4,1195.3,7.13595526]
[1672535925410,3.13472729,1195.4,1195.3,5.88179078]
[1672535928027,3.13472729,1195.4,1195.3,8.39070215]
[1672535928237,3.13472729,1195.4,1195.3,7.99204785]
[1672535929191,3.13472729,1195.4,1195.3,6.50891137]
[1672535929609,3.13472729,1195.4,1195.3,7.99205193]